bitfinex-derivatives/quotes_ETHF0:USTF0_20260201
["timestamp","ask_amount","ask_price","bid_price","bid_amount"]
[1769970810716,38.13080574,2358.0,2356.6,0.17846979]
[1769970810916,0.21222,2358.0,2356.6,0.17846979]
[1769970811410,2.489,2357.9,2356.7,0.17819659]
[1769970813012,2.70123,2357.9,2356.7,0.17819659]
[1769970813317,40.61981574,2357.9,2356.7,0.17819659]
[1769970814412,37.91858574,2357.9,2356.7,0.17819659]
[1769970814617,37.91858574,2358.3,2356.7,0.17819659]
[1769970815517,2.489,2358.2,2356.7,0.17819659]
[1769970815718,40.61978574,2358.2,2356.7,0.17819659]
[1769970815920,37.91858574,2358.1,2356.7,0.17819659]
[1769970816114,37.91858574,2358.3,2356.7,0.17819659]
[1769970816818,40.40758574,2358.3,2356.7,0.17819659]
[1769970817518,37.91858574,2358.2,2356.7,0.17819659]
[1769970817917,40.40758574,2358.3,2356.7,0.17819659]
[1769970818119,37.91858574,2358.2,2356.7,0.17819659]
[1769970819416,37.91858574,2358.3,2357.0,0.18142718]
[1769970819712,37.91858574,2358.4,2357.0,0.18142718]
[1769970819912,0.00375973,2358.7,2357.3,0.39370718]
[1769970820113,0.00375973,2358.7,2357.4,0.18150257]
[1769970820311,0.00375973,2358.7,2357.6,0.18150257]
[1769970820511,37.91858574,2359.1,2357.8,0.18150257]
[1769970820717,7.54563693,2359.7,2357.8,0.39374257]
[1769970820916,2.489,2359.7,2357.9,0.18150257]
[1769970821113,2.489,2359.7,2357.8,0.21224]
[1769970821114,0.21204,2360.0,2358.2,0.18150257]
[1769970821513,0.00446167,2360.0,2358.3,0.18150257]
[1769970821717,0.00446167,2360.0,2358.5,0.18150257]
[1769970822113,0.00446167,2360.0,2358.7,0.18060784]
[1769970827019,0.00446167,2360.0,2358.9,0.18100379]
[1769970829216,0.00446167,2360.0,2359.1,0.1819039]
[1769970829622,0.21206,2359.9,2358.4,0.1819039]
[1769970829823,0.00446167,2360.0,2358.5,0.3940739]
[1769970830025,0.00446167,2360.0,2358.6,0.1819039]
[1769970834132,0.21195,2361.0,2359.0,0.18273673]
[1769970834330,0.21195,2361.0,2359.2,0.18273673]
[1769970834531,5.05663693,2361.4,2359.2,0.18273673]
[1769970834829,0.21195,2361.0,2359.2,0.18273673]
[1769970835029,0.21539138,2361.0,2359.2,0.18273673]
[1769970835231,0.00344138,2361.0,2359.2,0.18273673]
[1769970835531,0.00344138,2361.0,2359.4,0.18273673]
[1769970835728,0.00344138,2361.0,2359.6,0.18273673]
[1769970836623,0.00344138,2361.0,2359.6,0.39480673]
[1769970836933,0.00344138,2361.0,2359.7,0.1859056]
[1769970839836,0.00344138,2361.0,2359.9,0.18624889]
[1769970841037,0.21198,2360.7,2359.6,0.18638696]
[1769970841233,0.00344138,2361.0,2359.4,0.18638696]
[1769970841631,0.21198,2360.7,2359.6,0.18638696]
[1769970841836,0.21201,2360.4,2359.1,0.18638696]
[1769970842035,0.00344138,2361.0,2359.1,0.18638696]
[1769970842338,0.21205,2359.9,2359.0,3.816]
[1769970843733,0.21205,2359.9,2358.8,0.18579026]
[1769970843940,0.21207,2359.7,2358.4,0.18579026]
[1769970847740,0.21202,2360.2,2358.4,0.18579026]
[1769970848238,5.05663693,2360.5,2358.4,0.18579026]
[1769970848444,5.26860693,2360.8,2358.8,0.18736022]
[1769970849043,0.21197,2360.8,2358.8,0.18736022]
[1769970849244,5.26860693,2360.8,2358.8,0.18736022]
[1769970849745,5.05663693,2360.6,2358.9,4.00436022]
[1769970849944,5.05663693,2360.4,2359.0,0.18736022]
[1769970850244,0.21204,2360.0,2359.0,0.18736022]
[1769970854846,5.26869693,2359.8,2358.4,0.19122453]
[1769970855046,5.05663693,2359.7,2358.4,0.19122453]
[1769970855248,5.26869693,2359.8,2358.4,0.19122453]
[1769970859054,0.2121,2359.3,2358.3,0.00519013]
[1769970859348,0.21211,2359.2,2358.3,0.00519013]
[1769970859548,0.21216,2358.7,2357.3,6.335]
[1769970859747,0.21213,2359.0,2357.8,0.19115163]
[1769970860545,0.21213,2359.0,2357.8,0.19645551]
[1769970860749,0.21214,2358.9,2357.8,0.19645551]
[1769970860950,5.05663693,2359.2,2357.8,0.19645551]
[1769970861254,0.21216,2358.7,2357.8,0.00530388]
[1769970861449,0.21217,2358.6,2357.8,0.00530388]
[1769970861655,0.21218,2358.5,2357.5,0.19078141]
[1769970862454,0.2122,2358.2,2357.1,0.19054156]
[1769970862647,0.21222,2358.0,2357.1,0.00548648]
[1769970862850,0.21223,2357.9,2357.1,0.00548648]
[1769970863454,0.21225,2357.7,2356.5,0.19054156]
[1769970864552,0.21225,2357.7,2356.5,0.19372225]
[1769970864752,0.21219,2358.3,2356.5,0.19372225]
[1769970864953,0.21215,2358.8,2356.7,0.1919547]
[1769970865154,0.21215,2358.8,2356.8,0.1919547]
[1769970865351,5.05663693,2359.1,2357.1,0.1919547]
[1769970865352,0.21213,2359.1,2357.1,0.1919547]
[1769970865553,0.21213,2359.1,2357.3,0.1919547]
[1769970866256,0.34590626,2359.1,2357.3,0.1919547]
[1769970866457,5.05663693,2359.1,2357.3,0.1919547]
[1769970867157,0.21217,2358.6,2357.3,0.1919547]
[1769970867458,0.21219,2358.3,2357.3,0.1919547]
[1769970868353,0.21222,2358.0,2357.0,0.19405744]
[1769970868554,0.21224,2357.8,2356.6,0.19405744]
[1769970868752,0.21225,2357.7,2356.6,0.19405744]
[1769970869258,5.05663693,2358.2,2356.6,0.19405744]
[1769970869259,0.21226,2357.6,2356.6,0.19405744]
[1769970869459,0.21565993,2357.6,2356.6,0.19405744]
[1769970869759,0.21228,2357.4,2356.6,0.19405744]
[1769970869958,0.2123,2357.1,2356.5,0.00318069]
[1769970870254,0.21235,2356.6,2354.8,2.80675228]
[1769970870558,8.85936275,2357.5,2355.1,0.19380504]
[1769970870559,0.21236,2356.5,2355.1,0.19380504]
[1769970870856,5.04036275,2357.5,2355.7,0.19380504]
[1769970871057,0.21565993,2357.6,2355.9,0.19380504]
[1769970871353,0.00339993,2357.6,2356.0,2.78805732]
[1769970871559,0.00339993,2357.6,2356.0,0.19380504]
[1769970872458,0.21565993,2357.6,2356.0,0.19380504]
[1769970873654,0.21226,2357.5,2356.0,0.19380504]
[1769970873859,0.21228,2357.4,2356.1,0.1931828]
[1769970875862,0.00339993,2357.6,2356.1,0.1931828]
[1769970876560,0.21226,2357.5,2356.5,0.19305784]
[1769970876862,0.00339993,2357.6,2356.5,0.19305784]
[1769970880159,0.21218,2358.5,2356.8,0.1907762]
[1769970881256,0.2171371,2358.5,2356.8,0.1907762]
[1769970882057,0.0049571,2358.5,2356.8,0.1907762]
[1769970882258,0.0049571,2358.5,2357.2,0.188516]
[1769970882459,0.0049571,2358.5,2357.4,0.188516]
[1769970882658,0.0049571,2358.5,2357.4,0.19267689]
[1769970883062,0.0049571,2358.5,2357.4,4.01367689]
[1769970883264,0.21222,2358.0,2357.4,0.00416089]
[1769970883467,0.21223,2357.9,2357.4,0.00416089]
[1769970884468,0.21223,2357.9,2357.4,0.19253282]
[1769970884970,0.21223,2357.9,2357.4,0.00416089]
[1769970887070,0.21224,2357.8,2356.8,0.18910261]
[1769970888067,0.21224,2357.8,2356.8,0.19327077]
[1769970891170,5.25255275,2358.3,2356.8,0.19327077]
[1769970894169,5.04036275,2358.2,2356.8,0.19327077]
[1769970894376,0.21225,2357.7,2356.8,0.19327077]
[1769970897475,0.21226,2357.6,2356.8,0.19327077]
[1769970897681,0.21228,2357.4,2356.8,0.00416816]
[1769970897882,5.04036275,2357.7,2356.8,0.1827223]
[1769970898178,5.04036275,2357.8,2356.8,0.1827223]
[1769970901288,0.21228,2357.3,2356.8,0.00416816]
[1769970902082,5.04036275,2357.5,2356.1,0.17654676]
[1769970902284,0.21233,2356.8,2355.8,3.99754676]
[1769970902479,0.21233,2356.8,2355.9,0.17654676]
[1769970903082,0.21679958,2356.8,2355.9,0.17988942]
[1769970903485,0.00446958,2356.8,2355.9,0.17988942]
[1769970903692,6.4863695,2357.9,2356.4,0.17654676]
[1769970903889,0.21226,2357.6,2356.4,0.17654676]
[1769970904190,0.21226,2357.6,2356.6,0.17683345]
[1769970904791,0.21709048,2357.6,2356.6,0.17683345]
[1769970905091,0.21709048,2357.6,2355.9,2.59759494]
[1769970905092,0.2123,2357.1,2356.3,3.43083345]
[1769970905284,0.21231,2357.1,2356.3,3.254]
[1769970906594,0.00483048,2357.6,2356.4,0.17938941]
[1769970907186,0.21224,2357.8,2356.4,0.17938941]
[1769970908293,0.21691763,2357.8,2356.6,0.18042668]
[1769970908594,0.21226,2357.6,2356.6,0.18042668]
[1769970908894,0.21226,2357.5,2356.6,0.18042668]
[1769970910190,0.00467763,2357.8,2356.8,0.18033634]
[1769970910397,0.21217,2358.6,2356.8,0.18033634]
[1769970910589,3.821,2358.8,2356.8,0.18033634]
[1769970910590,0.21219,2358.3,2356.8,0.18033634]
[1769970910893,0.21219,2358.3,2357.0,0.18033634]
[1769970911487,0.21638501,2358.3,2357.0,0.18033634]
[1769970911685,0.00419501,2358.3,2357.0,0.18033634]
[1769970911898,6.2741395,2358.2,2356.7,0.18033634]
[1769970912198,0.21229,2357.3,2356.4,0.18038279]
[1769970912493,0.21229,2357.2,2356.4,0.18038279]
[1769970912893,0.21233,2356.8,2355.7,0.18038279]
[1769970913094,0.21233,2356.8,2355.9,0.18372545]
[1769970916301,6.4864295,2357.3,2355.9,0.18372545]
[1769970916800,0.21229,2357.3,2355.9,0.18372545]
[1769970920304,0.21233,2356.8,2355.9,0.18372545]
[1769970921997,0.21235,2356.5,2355.9,0.00334266]
[1769970922207,0.21689493,2356.5,2355.9,0.00334266]
[1769970922503,0.21236,2356.4,2355.9,0.00334266]
[1769970923305,6.4864595,2356.9,2355.9,0.17535414]
[1769970923505,0.21233,2356.8,2355.9,0.17535414]
[1769970923804,5.06905736,2356.7,2355.9,0.17535414]
[1769970924499,5.07435563,2356.7,2355.9,0.17535414]
[1769970924904,0.00529827,2356.7,2355.9,0.17535414]
[1769970925306,5.28133736,2357.3,2355.9,0.17535414]
[1769970925804,5.06905736,2357.3,2355.9,0.17535414]
[1769970926003,5.06905736,2357.6,2356.1,0.17235823]
[1769970926203,0.21227,2357.4,2356.1,0.17235823]
[1769970926808,0.2123,2357.2,2356.2,0.17221183]
[1769970927003,0.21232,2356.9,2356.3,0.17221183]
[1769970927203,0.21236,2356.5,2355.9,0.00334266]
[1769970927408,5.28141736,2356.5,2355.7,0.17221183]
[1769970927609,5.22845634,2355.8,2354.0,3.822]
[1769970927813,0.15939898,2355.6,2353.7,5.19094525]
[1769970928105,5.06905736,2355.7,2353.7,5.19094525]
[1769970928106,5.22952273,2355.8,2353.7,4.97834525]
[1769970928308,0.21243,2355.7,2353.8,0.2126]
[1769970928610,0.16046537,2355.5,2353.9,6.312]
[1769970929206,0.16046537,2355.0,2353.8,0.00452737]
[1769970929608,0.16046537,2355.0,2353.9,0.1584972]
[1769970929914,0.16046537,2354.9,2353.8,0.00452737]
[1769970930602,0.21255,2354.4,2353.3,0.1584972]
[1769970930802,0.15827069,2354.1,2353.0,0.22196456]
[1769970931111,0.15703555,2353.7,2352.1,0.1584972]
[1769970931307,0.15703555,2353.4,2352.1,0.1584972]
[1769970931705,0.16087939,2353.4,2352.1,0.16307749]
[1769970931909,0.00384384,2353.4,2352.3,0.1584972]
[1769970932412,0.16186137,2353.4,2352.3,0.1584972]
[1769970933910,0.16186137,2353.4,2352.1,0.00458029]
[1769970934105,0.16186137,2353.4,2352.1,0.16307749]
[1769970934510,0.15818743,2353.3,2352.1,0.16307749]
[1769970934714,0.15818743,2353.2,2352.1,0.16307749]
[1769970934910,0.15818743,2353.2,2352.1,0.00458029]
[1769970935313,0.37083743,2353.2,2352.1,0.00458029]
[1769970935514,0.15818743,2353.0,2352.1,0.00458029]
[1769970935915,0.00384384,2353.4,2350.7,0.21288]
[1769970935916,0.15818743,2352.2,2350.7,0.1584972]
[1769970936115,0.15851468,2352.6,2350.7,0.1584972]
[1769970936313,0.15851468,2352.4,2350.7,0.1584972]
[1769970936513,0.15851468,2352.2,2350.7,0.1584972]
[1769970936912,0.15851468,2352.2,2350.7,0.16187852]
[1769970937110,0.15851468,2352.1,2350.7,0.16187852]
[1769970937309,0.15851468,2352.0,2350.7,0.16187852]
[1769970937509,0.15417379,2351.9,2350.7,0.16187852]
[1769970938211,0.36697379,2351.6,2350.7,0.00338132]
[1769970938516,0.36697379,2351.6,2350.7,0.15962025]
[1769970938517,0.0054265,2351.6,2350.7,0.15962025]
[1769970938913,0.15417379,2352.8,2350.7,0.13962025]
[1769970940119,0.15911585,2352.8,2350.7,0.14300866]
[1769970941108,0.15911585,2352.8,2350.8,0.15623893]
[1769970941314,0.00494206,2352.8,2350.9,0.15623893]
[1769970941514,0.00494206,2352.8,2351.1,0.15623893]
[1769970941710,0.00494206,2352.8,2351.3,0.15623893]
[1769970941918,0.15417379,2353.5,2351.2,3.827]
[1769970941919,0.15417379,2353.5,2351.6,0.15623893]
[1769970942617,0.21268,2353.0,2351.7,0.15623893]
[1769970942916,0.21624259,2353.0,2351.7,0.15623893]
[1769970943313,0.21269,2352.9,2351.7,0.15623893]
[1769970943508,0.36686379,2352.9,2351.7,0.15623893]
[1769970944713,0.00356259,2353.0,2351.7,0.15623893]
[1769970945321,0.1611198,2353.9,2351.9,0.16486293]
[1769970946313,0.1611198,2353.8,2351.9,0.16486293]
[1769970946718,0.21261,2353.7,2352.0,0.16486293]
[1769970947019,0.1611198,2353.8,2352.2,0.16486293]
[1769970947817,0.00427882,2353.9,2352.4,0.16486293]
[1769970948024,0.16539862,2353.9,2352.4,0.16862336]
[1769970948316,0.21262,2353.6,2352.4,0.16862336]
[1769970948822,0.3737498,2353.4,2352.4,0.16862336]
[1769970949522,0.21263,2353.4,2352.4,0.16862336]
[1769970950823,0.1611198,2353.5,2352.4,0.16862336]
[1769970951122,0.3737798,2353.2,2352.4,0.00376043]
[1769970951321,0.3737798,2353.2,2352.4,0.16862336]
[1769970951322,0.21266,2353.2,2352.4,0.16862336]
[1769970952623,0.21266,2353.2,2352.4,0.00376043]
[1769970952923,0.1611198,2353.0,2351.7,0.16486293]
[1769970953423,0.1611198,2353.0,2351.4,6.322]
[1769970953424,0.1611198,2353.7,2352.0,0.16486293]
[1769970953616,0.21262,2353.6,2352.0,0.16486293]
[1769970954020,0.00427882,2353.9,2352.1,0.16486293]
[1769970954216,0.00427882,2353.9,2352.3,0.16486293]
[1769970954420,0.1611198,2353.8,2352.5,0.16486293]
[1769970954619,0.21262,2353.6,2352.5,0.16486293]
[1769970954922,0.1611198,2353.8,2352.5,0.16486293]
[1769970955125,0.21264,2353.4,2352.5,0.16486293]
[1769970955515,0.1611198,2353.4,2352.1,0.16486293]
[1769970955715,0.00427882,2353.9,2352.0,0.00356926]
[1769970955716,0.21268,2352.9,2352.0,0.16843219]
[1769970958324,0.21269,2352.8,2352.0,0.16843219]
[1769970960632,5.28169736,2353.4,2352.0,0.16843219]
[1769970960827,5.23017716,2353.4,2352.0,0.16843219]
[1769970961128,5.23017716,2353.4,2351.4,0.16486293]
[1769970961129,0.21274,2352.3,2351.4,0.16486293]
[1769970961433,0.1611198,2352.4,2350.9,0.16486293]
[1769970961630,0.1611198,2352.3,2350.9,0.16486293]
[1769970961836,0.21277,2351.9,2350.9,0.16486293]
[1769970962029,0.1611198,2351.9,2350.9,0.16486293]
[1769970962336,0.00445492,2351.9,2350.9,0.16959885]
[1769970962535,0.21274,2352.3,2350.9,0.16959885]
[1769970962735,5.06905736,2352.5,2350.9,0.38245885]
[1769970962936,0.21269,2352.8,2351.0,0.16486293]
[1769970963236,5.44281716,2353.3,2351.4,0.37767293]
[1769970963434,0.21265,2353.2,2351.6,0.16486293]
[1769970963935,0.21267,2353.1,2351.6,0.16486293]
[1769970964135,0.3737898,2353.1,2351.6,0.16486293]
[1769970964737,0.21267,2353.1,2351.6,0.16486293]
[1769970966737,0.3737898,2353.1,2351.6,0.16486293]
[1769970967035,0.16612102,2353.3,2351.6,0.16486293]
[1769970967239,0.21265,2353.2,2351.6,0.16486293]
[1769970967833,0.37026838,2353.2,2351.6,0.16486293]
[1769970969433,4.89273909,2353.5,2351.6,0.16486293]
[1769970969633,0.15761838,2354.0,2352.3,0.15653816]
[1769970969836,0.15761838,2353.7,2352.5,0.15653816]
[1769970970041,4.40881838,2353.7,2352.5,0.15653816]
[1769970970437,4.41309417,2353.7,2352.5,0.15653816]
[1769970970637,0.00427579,2353.7,2352.5,0.15653816]
[1769970971642,0.00427579,2353.7,2352.5,3.49253816]
[1769970971839,4.2512,2353.4,2352.1,0.15653816]
[1769970972040,0.15761838,2353.5,2352.3,0.15653816]
[1769970972343,0.21265,2353.3,2352.3,0.15653816]
[1769970972744,4.2512,2353.3,2352.3,0.15653816]
[1769970972944,0.15761838,2353.5,2352.3,0.15653816]
[1769970973246,0.15761838,2353.4,2352.3,0.15653816]
[1769970973444,4.40881838,2353.4,2352.3,0.15653816]
[1769970973745,4.2512,2353.3,2352.3,0.15653816]
[1769970974941,4.2512,2352.4,2351.7,2.38409297]
[1769970975140,0.37032838,2352.6,2351.5,0.15653816]
[1769970975845,0.21271,2352.6,2351.5,0.15653816]
[1769970977546,0.15761838,2352.9,2351.5,0.15653816]
[1769970977746,4.2512,2352.8,2351.5,0.15653816]
[1769970977946,4.2512,2352.8,2351.6,0.15653816]
[1769970978347,4.2512,2352.7,2351.6,0.15653816]
[1769970978547,4.40881838,2352.8,2351.6,0.15653816]
[1769970978744,0.15761838,2352.7,2351.1,0.15653816]
[1769970978943,0.15761838,2352.3,2351.1,0.15653816]
[1769970979347,4.40881838,2352.2,2351.1,0.15653816]
[1769970979547,0.15761838,2352.2,2351.1,0.15653816]
[1769970979845,4.40881838,2352.1,2351.1,0.15653816]
[1769970980250,4.2512,2352.1,2351.1,0.15653816]
[1769970980550,4.2512,2351.9,2351.1,0.15653816]
[1769970980745,0.00514316,2351.9,2351.1,0.15653816]
[1769970980945,0.15761838,2351.8,2350.9,0.00473592]
[1769970981151,4.2512,2351.6,2350.9,0.00473592]
[1769970981651,4.2512,2351.5,2350.9,0.00473592]
[1769970981847,0.00514316,2351.9,2350.9,0.16127408]
[1769970982054,4.41396154,2351.9,2350.9,0.16127408]
[1769970982351,4.2512,2351.8,2350.9,0.16127408]
[1769970982552,0.00514316,2351.9,2350.9,0.16127408]
[1769970983050,4.2512,2351.8,2350.9,0.16127408]
[1769970983246,0.00514316,2351.9,2350.9,0.16127408]
[1769970983447,0.15761838,2351.4,2350.2,0.15653816]
[1769970983648,4.62164838,2351.3,2350.2,0.15653816]
[1769970983954,0.15761838,2351.5,2350.2,0.15653816]
[1769970984449,0.15761838,2351.3,2350.2,0.1616317]
[1769970984654,0.15761838,2351.1,2350.2,0.00509354]
[1769970984952,0.15761838,2351.0,2350.2,0.00509354]
[1769970985152,4.2512,2350.7,2350.2,0.00509354]
[1769970985351,4.2512,2350.6,2350.2,0.00509354]
[1769970985552,4.2512,2350.4,2349.6,0.15653816]
[1769970985748,0.15761838,2351.1,2349.6,0.15653816]
[1769970986149,4.2512,2351.0,2349.6,0.15653816]
[1769970986348,0.15761838,2351.1,2349.6,0.15653816]
[1769970986550,0.15761838,2351.5,2349.7,0.15653816]
[1769970986746,0.15761838,2351.3,2349.9,0.15653816]
[1769970988251,0.15761838,2351.6,2350.0,0.15653816]
[1769970988453,0.15761838,2351.6,2350.1,0.15653816]
[1769970988854,4.40881838,2351.5,2350.1,0.15653816]
[1769970989254,4.2512,2351.4,2350.1,0.15653816]
[1769970989448,0.21279,2351.7,2350.1,0.15653816]
[1769970989855,0.00514316,2351.9,2350.6,0.15653816]
[1769970990055,0.00514316,2351.9,2350.8,0.15653816]
[1769970990252,0.00514316,2351.9,2351.0,0.15653816]
[1769970990448,0.00514316,2351.9,2350.3,0.15653816]
[1769970990449,4.2512,2351.4,2350.3,0.15653816]
[1769970990653,0.15761838,2351.5,2350.3,0.15653816]
[1769970990857,4.40881838,2351.2,2350.3,0.15653816]
[1769970991061,0.15761838,2351.1,2349.9,0.15653816]
[1769970991254,0.15761838,2351.0,2349.9,0.15653816]
[1769970991655,4.2512,2350.9,2349.9,0.15653816]
[1769970992056,0.37044838,2351.3,2350.1,0.15653816]
[1769970992253,0.15761838,2351.8,2350.1,0.15653816]
[1769970992550,0.15761838,2351.8,2350.8,0.15653816]
[1769970992953,4.2512,2351.7,2350.8,0.15653816]
[1769970993459,4.2512,2351.6,2350.8,0.15653816]
[1769970993660,4.2512,2351.7,2350.8,0.15653816]
[1769970994162,4.2512,2351.6,2350.8,0.15653816]
[1769970994358,4.2512,2351.7,2350.8,0.15653816]
[1769970994555,0.15761838,2351.8,2350.8,0.15653816]
[1769970994861,0.15761838,2351.8,2350.7,2.496]
[1769970994862,4.2512,2351.5,2350.5,6.48253816]
[1769970995062,0.16276154,2351.9,2350.8,0.15653816]
[1769970995253,4.2512,2351.8,2350.8,0.15653816]
[1769970995459,4.2512,2351.7,2350.8,0.15653816]
[1769970995961,4.2512,2351.6,2350.8,0.15653816]
[1769970996158,4.2512,2351.3,2350.4,0.15653816]
[1769970996463,0.15761838,2351.5,2350.4,0.15653816]
[1769970996664,4.2512,2351.3,2350.4,0.15653816]
[1769970997060,4.2512,2351.2,2350.4,0.15653816]
[1769970997258,4.2512,2351.3,2350.4,0.15653816]
[1769970997662,4.2512,2351.2,2350.4,0.15653816]
[1769970997862,4.2512,2351.3,2350.4,0.15653816]
[1769970998359,4.2512,2351.2,2350.4,0.15653816]
[1769970998564,4.2512,2351.3,2350.4,0.15653816]
[1769970999066,0.00514316,2351.9,2350.8,0.1640567]
[1769970999566,4.25634316,2351.9,2350.8,0.1640567]
[1769970999963,0.1645196,2351.9,2350.8,0.1640567]
[1769971000168,4.2512,2351.7,2350.8,0.1640567]
[1769971000562,4.2512,2351.6,2350.8,0.1640567]
[1769971000764,4.2512,2351.7,2350.8,0.1640567]
[1769971001167,4.2512,2351.6,2350.8,0.1640567]
[1769971001366,4.2512,2351.7,2350.8,0.1640567]
[1769971001764,4.2512,2351.5,2350.8,0.1640567]
[1769971002265,4.2512,2350.9,2349.9,0.1640567]
[1769971002469,0.15937644,2351.0,2350.1,0.1640567]
[1769971002673,4.41057644,2351.0,2350.1,0.1640567]
[1769971002875,0.15937644,2351.3,2350.1,0.1640567]
[1769971003069,0.37217644,2351.6,2350.3,0.1640567]
[1769971003367,0.15937644,2351.6,2350.3,0.1640567]
[1769971003768,0.3772996,2351.9,2350.7,0.1640567]
[1769971004171,0.1645196,2351.9,2350.7,0.1640567]
[1769971005768,0.00514316,2351.9,2350.7,0.1640567]
[1769971006372,4.25634316,2351.9,2350.7,0.1640567]
[1769971006977,0.00514316,2351.9,2350.7,0.1640567]
[1769971007173,4.25634316,2351.9,2350.7,0.1640567]
[1769971007373,0.00514316,2351.9,2350.7,0.1640567]
[1769971007572,4.25634316,2351.9,2350.7,0.1640567]
[1769971007974,0.00514316,2351.9,2350.7,0.1640567]
[1769971008478,0.00514316,2351.9,2350.9,0.15878618]
[1769971008676,4.25634316,2351.9,2350.9,0.15878618]
[1769971008876,4.2512,2351.7,2350.9,0.15878618]
[1769971009076,0.00514316,2351.9,2350.9,0.15878618]
[1769971009271,4.2512,2351.6,2350.9,0.15878618]
[1769971009575,0.16532348,2351.3,2350.6,3.83]
[1769971009773,0.37811348,2351.7,2350.6,3.98878618]
[1769971009975,0.16532348,2351.6,2350.6,3.83]
[1769971010271,4.2512,2351.0,2350.3,2.723]
[1769971010473,0.16532348,2351.2,2350.0,0.15878618]
[1769971010674,0.16532348,2351.2,2350.1,3.291]
[1769971010874,4.2512,2351.0,2350.1,3.291]
[1769971011069,0.16532348,2351.2,2350.1,0.15878618]
[1769971011374,4.2512,2350.8,2350.1,0.15878618]
[1769971012278,0.16532348,2351.4,2350.1,0.15878618]
[1769971012478,0.16532348,2351.4,2350.2,0.15878618]
[1769971013174,0.16532348,2351.3,2350.2,0.15878618]
[1769971013375,0.16532348,2351.3,2350.2,3.34778618]
[1769971013673,0.16532348,2351.2,2350.1,3.292]
[1769971013878,0.16532348,2351.2,2349.9,0.15878618]
[1769971014078,0.37816348,2351.2,2349.9,0.15878618]
[1769971014277,0.16532348,2351.1,2349.9,0.15878618]
[1769971014973,0.21285,2351.0,2349.9,0.15878618]
[1769971015173,0.16532348,2350.8,2349.6,0.16178124]
[1769971015769,0.16532348,2350.2,2348.7,2.44772398]
[1769971015976,0.16532348,2350.0,2348.7,0.15878618]
[1769971016369,0.16532348,2349.9,2348.7,0.15878618]
[1769971016576,0.16532348,2349.8,2348.4,0.15878618]
[1769971016880,0.16532348,2349.8,2348.4,0.16251901]
[1769971016881,0.16532348,2349.6,2348.4,0.16251901]
[1769971017277,0.16532348,2349.6,2348.4,0.00373283]
[1769971017478,0.34037381,2349.8,2348.0,0.26467029]
[1769971017479,0.16532348,2349.1,2348.0,0.26467029]
[1769971017676,0.16532348,2349.1,2348.1,0.15878618]
[1769971017978,0.16532348,2349.1,2348.0,0.26467029]
[1769971018180,0.16532348,2349.0,2348.0,0.26467029]
[1769971018377,0.16532348,2348.8,2348.0,0.26958997]
[1769971018579,0.16532348,2348.8,2348.0,0.07972776]
[1769971018774,0.16532348,2348.8,2347.2,0.16614016]
[1769971018976,6.2741395,2349.2,2347.3,0.16614016]
[1769971019180,0.21302,2349.1,2347.7,0.16614016]
[1769971019580,0.55334381,2349.8,2348.0,0.16614016]
[1769971019779,0.21728729,2349.8,2348.0,0.16614016]
[1769971019980,0.21728729,2349.8,2348.0,0.17023539]
[1769971020786,0.21728729,2349.8,2348.8,0.16748435]
[1769971021081,0.21297,2349.7,2348.5,0.16748435]
[1769971021273,0.00431729,2349.8,2348.1,0.16748435]
[1769971021479,0.21303,2349.1,2348.0,0.00409523]
[1769971021985,0.21303,2349.1,2348.0,0.17157958]
[1769971022476,0.21297,2349.7,2348.4,0.16401613]
[1769971022681,0.00431729,2349.8,2348.6,0.16401613]
[1769971022875,0.00431729,2349.8,2348.8,0.16401613]
[1769971023078,0.00424807,2350.7,2349.2,0.16401613]
[1769971023483,0.21287,2350.8,2349.2,0.16401613]
[1769971023675,0.00424807,2350.6,2349.2,2.66201613]
[1769971023879,2.94452697,2351.4,2349.2,0.16401613]
[1769971023880,0.21294,2350.3,2349.2,0.16401613]
[1769971024075,0.22049453,2350.3,2349.2,0.16401613]
[1769971024279,0.21624646,2350.3,2349.2,0.16401613]
[1769971024776,0.00330646,2350.3,2348.8,0.16029511]
[1769971026180,0.21296,2350.1,2348.8,0.16029511]
[1769971026580,0.0123436,2350.0,2348.9,0.15996836]
[1769971026781,0.21296,2350.1,2348.9,0.15996836]
[1769971026982,0.21296,2350.1,2349.1,0.15996836]
[1769971027280,0.00330646,2350.3,2349.1,0.15996836]
[1769971028886,0.2129,2350.7,2349.4,0.16076149]
[1769971029085,0.01232242,2351.1,2349.4,0.16076149]
[1769971029287,0.22518242,2351.1,2349.4,0.16076149]
[1769971029882,0.21288,2351.0,2349.4,0.16076149]
[1769971030082,0.00549288,2351.1,2349.9,0.16076149]
[1769971030377,0.21283,2351.5,2350.3,0.16076149]
[1769971030581,0.21285,2351.3,2350.3,0.16076149]
[1769971030784,0.21292,2350.6,2349.9,0.00516896]
[1769971031081,0.21298,2349.9,2348.7,3.833]
[1769971031283,0.37206912,2349.9,2348.7,3.833]
[1769971031478,0.15908912,2349.9,2348.2,2.60750377]
[1769971031684,0.213,2349.6,2348.3,3.833]
[1769971031983,0.37710042,2349.6,2348.3,6.33560855]
[1769971032182,0.37710042,2349.6,2348.3,0.00460855]
[1769971032384,0.37710042,2349.6,2348.4,6.433]
[1769971032780,0.15908912,2350.4,2348.7,2.60750377]
[1769971032983,0.37201912,2350.4,2348.8,0.16076149]
[1769971033282,6.331,2351.3,2348.3,0.00460855]
[1769971033283,0.15908912,2349.5,2348.3,0.00460855]
[1769971033489,0.37210912,2349.5,2348.3,0.16537004]
[1769971033688,0.15908912,2349.3,2348.3,0.16537004]
[1769971034190,0.21302,2349.4,2348.3,0.16537004]
[1769971034492,0.00396622,2349.5,2348.4,0.16076149]
[1769971035390,0.16305534,2349.5,2348.4,0.16076149]
[1769971035692,0.15908912,2349.2,2348.3,0.00460855]
[1769971035886,0.37216912,2348.7,2347.5,0.16076149]
[1769971036090,0.15908912,2348.6,2347.5,0.16076149]
[1769971036289,0.15908912,2349.0,2347.5,0.16076149]
[1769971036490,0.00396622,2349.5,2347.1,6.331]
[1769971036491,0.15908912,2348.9,2347.1,2.65876149]
[1769971036882,0.21307,2348.8,2347.2,0.16076149]
[1769971037084,0.37215912,2348.8,2347.2,0.16076149]
[1769971037284,0.37218912,2348.6,2347.3,6.49176149]
[1769971037489,0.37218912,2348.6,2347.5,0.16076149]
[1769971037791,0.15908912,2348.3,2347.3,2.859]
[1769971038091,0.15908912,2348.9,2347.4,0.16076149]
[1769971038986,0.21307,2348.8,2347.4,0.16076149]
[1769971039294,0.21307,2348.8,2347.6,0.16076149]
[1769971039485,0.15908912,2348.7,2347.6,6.49276149]
[1769971039691,0.15908912,2348.7,2347.6,0.16076149]
[1769971040295,0.21307,2348.8,2347.6,0.16076149]
[1769971040890,0.21307,2348.8,2347.7,7.08176149]
[1769971041084,0.21307,2348.8,2347.8,0.16076149]